bitfinex/quotes_BTCUSD_20241023
["timestamp","ask_amount","ask_price","bid_price","bid_amount"]
[1729668469992,0.83123363,66963.0,66962.0,0.000824]
[1729668470201,0.68578611,66963.0,66962.0,0.000824]
[1729668470404,0.62059826,66963.0,66962.0,0.000824]
[1729668470630,0.68578611,66963.0,66962.0,0.000824]
[1729668470832,0.79553518,66963.0,66962.0,0.000824]
[1729668471040,0.84009614,66963.0,66962.0,0.000824]
[1729668471249,0.73034707,66963.0,66962.0,0.00059209]
[1729668471632,0.77775601,66963.0,66962.0,0.00059209]
[1729668472313,0.88750508,66963.0,66962.0,0.00059209]
[1729668472731,1.02069156,66963.0,66962.0,0.00059209]
[1729668473349,1.01869156,66963.0,66962.0,0.00059209]
[1729668474014,1.02069156,66963.0,66962.0,0.00059209]
[1729668474220,0.97431666,66963.0,66962.0,0.00059209]
[1729668475265,0.84113018,66963.0,66962.0,0.00059209]
[1729668476364,0.83913018,66963.0,66962.0,0.00059209]
[1729668479353,0.85303324,66963.0,66962.0,0.00059209]
[1729668480211,0.73755609,66963.0,66962.0,0.00059209]
[1729668480852,0.58980702,66963.0,66962.0,0.00059209]
[1729668481067,0.67872408,66963.0,66962.0,0.00059209]
[1729668481301,0.536343,66963.0,66962.0,0.00036018]
[1729668481578,0.531343,66963.0,66962.0,0.00036018]
[1729668482005,0.64609207,66963.0,66962.0,0.00036018]
[1729668482222,0.64642815,66963.0,66962.0,0.00036018]
[1729668483065,0.64142815,66963.0,66962.0,0.00036018]
[1729668483495,0.64642815,66963.0,66962.0,0.00036018]
[1729668483906,0.64642815,66963.0,66962.0,0.00012827]
[1729668484109,0.64142815,66963.0,66962.0,0.00012827]
[1729668484733,0.64642815,66963.0,66962.0,0.00012827]
[1729668486864,0.64638586,66963.0,66962.0,0.00012827]
[1729668487497,0.77401667,66963.0,66962.0,0.00012827]
[1729668487703,0.88376574,66963.0,66962.0,0.00012827]
[1729668488962,0.77401667,66963.0,66962.0,0.00012827]
[1729668491066,0.88376574,66963.0,66962.0,0.00012827]
[1729668491282,1.05019099,66963.0,66962.0,0.00012827]
[1729668491492,0.22922607,66958.0,66957.0,0.00048944]
[1729668491721,0.50458939,66958.0,66957.0,0.00048944]
[1729668492342,0.40873753,66958.0,66957.0,0.00048944]
[1729668492804,0.5184866,66958.0,66957.0,0.00048944]
[1729668495112,0.66744575,66958.0,66957.0,0.00048944]
[1729668495536,0.66744629,66958.0,66957.0,0.00048944]
[1729668496168,0.40873807,66958.0,66957.0,0.00048944]
[1729668496392,0.39484032,66958.0,66957.0,0.00048944]
[1729668497282,0.50458939,66958.0,66957.0,0.00048944]
[1729668500404,0.39484032,66958.0,66957.0,0.00048944]
[1729668501227,0.39484032,66958.0,66957.0,2.561e-05]
[1729668501894,0.50458939,66958.0,66957.0,2.561e-05]
[1729668506191,0.39648832,66958.0,66957.0,2.561e-05]
[1729668511315,0.2853006,66958.0,66957.0,2.561e-05]
[1729668511529,0.37430265,66958.0,66957.0,2.561e-05]
[1729668513918,0.3965444,66958.0,66957.0,2.561e-05]
[1729668514950,0.121125,66958.0,66957.0,2.561e-05]
[1729668515160,0.2100964,66958.0,66957.0,2.561e-05]
[1729668515370,0.3743112,66958.0,66957.0,2.561e-05]
[1729668517902,0.2853398,66958.0,66957.0,2.561e-05]
[1729668521330,0.18786605,66958.0,66957.0,2.561e-05]
[1729668522142,0.121125,66958.0,66957.0,2.561e-05]
[1729668522565,0.20177177,66958.0,66957.0,2.561e-05]
[1729668522778,0.13503072,66958.0,66957.0,2.561e-05]
[1729668522988,0.20176817,66958.0,66957.0,2.561e-05]
[1729668523194,0.29926196,66958.0,66957.0,2.561e-05]
[1729668523466,0.20177052,66958.0,66957.0,2.561e-05]
[1729668523708,0.13503072,66958.0,66957.0,2.561e-05]
[1729668524127,0.29926946,66958.0,66957.0,2.561e-05]
[1729668524555,0.20177147,66958.0,66957.0,2.561e-05]
[1729668524767,0.179527,66958.0,66957.0,2.561e-05]
[1729668524977,0.20177147,66958.0,66957.0,2.561e-05]
[1729668525189,0.17952671,66958.0,66957.0,2.561e-05]
[1729668525416,0.20177147,66958.0,66957.0,2.561e-05]
[1729668525659,0.13503072,66958.0,66957.0,2.561e-05]
[1729668526304,0.38825721,66958.0,66957.0,2.561e-05]
[1729668526511,0.20177257,66958.0,66957.0,2.561e-05]
[1729668527006,0.17952724,66958.0,66957.0,2.561e-05]
[1729668527491,0.13503072,66958.0,66957.0,2.561e-05]
[1729668531187,0.01555372,66958.0,66957.0,2.561e-05]
[1729668531391,0.13503072,66958.0,66957.0,0.09332561]
[1729668532647,0.121125,66958.0,66957.0,0.09332561]
[1729668533045,0.001648,66958.0,66957.0,0.09332561]
[1729668533465,0.121125,66958.0,66957.0,0.09332561]
[1729668534751,0.121125,66958.0,66957.0,2.561e-05]
[1729668542715,0.45390041,66958.0,66957.0,2.561e-05]
[1729668542948,0.69951134,66958.0,66957.0,2.561e-05]
[1729668543189,0.61059508,66958.0,66957.0,2.561e-05]
[1729668543608,0.52706374,66958.0,66957.0,2.561e-05]
[1729668543826,0.71339587,66958.0,66957.0,2.561e-05]
[1729668544709,0.86235502,66958.0,66957.0,2.561e-05]
[1729668545582,0.77344119,66958.0,66957.0,2.561e-05]
[1729668545815,0.86235274,66958.0,66957.0,2.561e-05]
[1729668546047,0.86235239,66958.0,66957.0,2.561e-05]
[1729668546502,0.86235032,66958.0,66957.0,2.561e-05]
[1729668546921,0.77343939,66958.0,66957.0,2.561e-05]
[1729668547148,0.86235077,66958.0,66957.0,2.561e-05]
[1729668548950,0.77343816,66958.0,66957.0,2.561e-05]
[1729668549160,0.86235077,66958.0,66957.0,2.561e-05]
[1729668549586,0.77343816,66958.0,66957.0,2.561e-05]
[1729668549794,0.86234705,66958.0,66957.0,2.561e-05]
[1729668550887,0.89034705,66958.0,66957.0,2.561e-05]
[1729668551098,0.80142798,66958.0,66957.0,2.561e-05]
[1729668555739,0.90142798,66958.0,66957.0,2.561e-05]
[1729668560533,0.75246883,66958.0,66957.0,2.561e-05]
[1729668561410,0.86354224,66958.0,66957.0,2.561e-05]
[1729668562087,0.74064224,66958.0,66957.0,2.561e-05]
[1729668562298,0.62956883,66958.0,66957.0,2.561e-05]
[1729668562517,0.71842768,66958.0,66957.0,2.561e-05]
[1729668563645,0.62956883,66958.0,66957.0,2.561e-05]
[1729668563857,0.77852798,66958.0,66957.0,2.561e-05]
[1729668564083,0.86738683,66958.0,66957.0,2.561e-05]
[1729668564292,0.68107848,66958.0,66957.0,2.561e-05]
[1729668564504,0.77844108,66958.0,66957.0,2.561e-05]
[1729668564711,0.61443497,66958.0,66957.0,2.561e-05]
[1729668564952,0.46547582,66958.0,66957.0,2.561e-05]
[1729668565153,0.51822861,66958.0,66957.0,2.561e-05]
[1729668565592,0.46547814,66958.0,66957.0,2.561e-05]
[1729668565822,0.53212305,66958.0,66957.0,2.561e-05]
[1729668566038,0.46547814,66958.0,66957.0,2.561e-05]
[1729668566264,0.71834161,66958.0,66957.0,2.561e-05]
[1729668566476,0.86730076,66958.0,66957.0,2.561e-05]
[1729668566899,0.77844191,66958.0,66957.0,2.561e-05]
[1729668567107,0.88951532,66958.0,66957.0,2.561e-05]
[1729668567325,0.74055617,66958.0,66957.0,2.561e-05]
[1729668567944,0.62948276,66958.0,66957.0,2.561e-05]
[1729668571341,0.46547814,66958.0,66957.0,2.561e-05]
[1729668571585,0.08217895,66958.0,66957.0,0.09612561]
[1729668572008,0.01554199,66958.0,66957.0,0.09612561]
[1729668572742,0.13501899,66958.0,66957.0,0.09612561]
[1729668573739,0.01554199,66958.0,66957.0,0.09612561]
[1729668574701,0.13501899,66958.0,66957.0,0.09612561]
[1729668574955,0.01554199,66958.0,66957.0,0.09612561]
[1729668575205,0.13501899,66958.0,66957.0,0.09612561]
[1729668578902,0.121125,66958.0,66957.0,2.561e-05]
[1729668594666,0.121125,66958.0,66957.0,2.561e-05]
[1729668601246,0.52988115,66958.0,66957.0,2.561e-05]
[1729668601473,0.71683555,66958.0,66957.0,2.561e-05]
[1729668601683,0.80567068,66958.0,66957.0,2.561e-05]
[1729668601904,0.71683555,66958.0,66957.0,2.561e-05]
[1729668602983,0.73073172,66958.0,66957.0,2.561e-05]
[1729668603204,0.65273472,66958.0,66957.0,2.561e-05]
[1729668603440,0.62473472,66958.0,66957.0,2.561e-05]
[1729668603666,0.26224068,66958.0,66957.0,2.561e-05]
[1729668603921,0.203925,66958.0,66957.0,2.561e-05]
[1729668604376,0.121125,66958.0,66957.0,2.561e-05]
[1729668604861,0.13502045,66958.0,66957.0,2.561e-05]
[1729668605082,0.13502047,66958.0,66957.0,2.561e-05]
[1729668605543,0.01554347,66958.0,66957.0,2.561e-05]
[1729668605760,0.13502047,66958.0,66957.0,2.561e-05]
[1729668605966,0.121125,66958.0,66957.0,2.561e-05]
[1729668609955,0.13502414,66958.0,66957.0,2.561e-05]
[1729668612073,0.01554714,66958.0,66957.0,2.561e-05]
[1729668612284,0.121125,66958.0,66957.0,2.561e-05]
[1729668612486,0.13502357,66958.0,66957.0,2.561e-05]
[1729668612931,0.121125,66958.0,66957.0,2.561e-05]
[1729668613570,0.001648,66958.0,66957.0,2.561e-05]
[1729668613778,0.121125,66958.0,66957.0,2.561e-05]
[1729668614604,0.001648,66958.0,66957.0,2.561e-05]
[1729668615016,0.121125,66958.0,66957.0,2.561e-05]
[1729668615496,0.001648,66958.0,66957.0,2.561e-05]
[1729668615708,0.121125,66958.0,66957.0,2.561e-05]
[1729668615917,0.121125,66958.0,66957.0,0.09592561]
[1729668618687,0.121125,66958.0,66957.0,2.561e-05]
[1729668619119,0.200625,66958.0,66957.0,2.561e-05]
[1729668619707,0.48533091,66958.0,66957.0,2.561e-05]
[1729668619913,0.69397224,66958.0,66957.0,2.561e-05]
[1729668620121,0.60507762,66958.0,66957.0,2.561e-05]
[1729668620979,0.61897069,66958.0,66957.0,2.561e-05]
[1729668621599,0.81766418,66958.0,66957.0,2.561e-05]
[1729668622065,0.56452629,66958.0,66957.0,2.561e-05]
[1729668622272,0.63123592,66958.0,66957.0,2.561e-05]
[1729668622903,0.55063322,66958.0,66957.0,2.561e-05]
[1729668623113,0.71478768,66958.0,66957.0,2.561e-05]
[1729668623537,0.61733723,66958.0,66957.0,2.561e-05]
[1729668623748,0.71478272,66958.0,66957.0,2.561e-05]
[1729668624576,0.71477307,66958.0,66957.0,2.561e-05]
[1729668624791,0.36476507,66958.0,66957.0,2.561e-05]
[1729668625010,0.24509242,66958.0,66957.0,2.561e-05]
[1729668625460,0.200625,66958.0,66957.0,2.561e-05]
[1729668625696,0.31037407,66958.0,66957.0,2.561e-05]
[1729668625905,0.32426413,66958.0,66957.0,2.561e-05]
[1729668626310,0.39713086,66958.0,66957.0,2.561e-05]
[1729668627362,0.28738179,66958.0,66957.0,2.561e-05]
[1729668627568,0.33184921,66958.0,66957.0,2.561e-05]
[1729668627783,0.28738179,66958.0,66957.0,2.561e-05]
[1729668627985,0.21451506,66958.0,66957.0,2.561e-05]
[1729668629966,0.36873155,66958.0,66957.0,2.561e-05]
[1729668630170,0.36873436,66958.0,66957.0,2.561e-05]
[1729668630630,0.51769351,66958.0,66957.0,2.561e-05]
[1729668630879,0.47322638,66958.0,66957.0,2.561e-05]
[1729668631094,0.47322613,66958.0,66957.0,2.561e-05]
[1729668631302,0.61627716,66958.0,66957.0,2.561e-05]
[1729668632176,0.86937241,66958.0,66957.0,2.561e-05]
[1729668633086,0.83196407,66958.0,66957.0,2.561e-05]
[1729668634083,0.84585733,66958.0,66957.0,2.561e-05]
[1729668634311,0.84577548,66958.0,66957.0,2.561e-05]
[1729668634519,0.84577376,66958.0,66957.0,2.561e-05]
[1729668634959,0.87377376,66958.0,66957.0,2.561e-05]
[1729668635796,1.02273291,66958.0,66957.0,2.561e-05]
[1729668636227,1.12473291,66958.0,66957.0,2.561e-05]
[1729668636442,1.12273291,66958.0,66957.0,2.561e-05]
[1729668637966,1.01159136,66958.0,66957.0,2.561e-05]
[1729668638220,1.01158796,66958.0,66957.0,2.561e-05]
[1729668638465,0.86262881,66958.0,66957.0,2.561e-05]
[1729668638679,0.95151269,66958.0,66957.0,2.561e-05]
[1729668638878,0.86262881,66958.0,66957.0,2.561e-05]
[1729668640384,0.69834161,66958.0,66957.0,2.561e-05]
[1729668640594,0.95125814,66958.0,66957.0,2.561e-05]
[1729668640817,0.69834161,66958.0,66957.0,2.561e-05]
[1729668641276,0.86237808,66958.0,66957.0,2.561e-05]
[1729668642013,0.86237804,66958.0,66957.0,2.561e-05]
[1729668643425,0.86237329,66958.0,66957.0,2.561e-05]
[1729668645454,0.9512455,66958.0,66957.0,2.561e-05]
[1729668645899,0.95125104,66958.0,66957.0,2.561e-05]
[1729668646186,0.69834711,66958.0,66957.0,2.561e-05]
[1729668646414,0.76500151,66958.0,66957.0,2.561e-05]
[1729668646630,0.86237713,66958.0,66957.0,2.561e-05]
[1729668646876,0.63970172,66958.0,66957.0,2.561e-05]
[1729668648324,0.82594879,66958.0,66957.0,2.561e-05]
[1729668648565,0.73707658,66958.0,66957.0,2.561e-05]
[1729668649726,0.73708589,66958.0,66957.0,2.561e-05]
[1729668649990,0.82595862,66958.0,66957.0,2.561e-05]
[1729668653343,0.72318294,66958.0,66957.0,2.561e-05]
[1729668653553,0.73708559,66958.0,66957.0,2.561e-05]
[1729668654205,0.82597962,66958.0,66957.0,2.561e-05]
[1729668655027,0.57305612,66958.0,66957.0,2.561e-05]
[1729668655231,0.7232058,66958.0,66957.0,2.561e-05]
[1729668655437,0.82599015,66958.0,66957.0,2.561e-05]
[1729668655637,0.82599689,66958.0,66957.0,2.561e-05]
[1729668655843,0.73710862,66958.0,66957.0,2.561e-05]
[1729668657662,0.84819888,66958.0,66957.0,2.561e-05]
[1729668658537,0.71626053,66958.0,66957.0,2.561e-05]
[1729668658793,0.8260096,66958.0,66957.0,2.561e-05]
[1729668659712,0.73710862,66958.0,66957.0,2.561e-05]
[1729668659949,0.82602652,66958.0,66957.0,2.561e-05]
[1729668660243,0.84819888,66958.0,66957.0,2.561e-05]
[1729668660505,1.00946777,66958.0,66957.0,2.561e-05]
[1729668660792,1.05447729,66958.0,66957.0,2.561e-05]
[1729668660997,1.00947843,66958.0,66957.0,2.561e-05]
[1729668661516,6.30976434,66958.0,66957.0,2.561e-05]
[1729668661694,6.45563277,66958.0,66957.0,2.561e-05]
[1729668662137,0.119518,66935.0,66934.0,0.000824]
[1729668662350,0.24318055,66935.0,66934.0,0.000824]
[1729668662576,0.3921397,66935.0,66934.0,0.000824]
[1729668662799,0.72609499,66935.0,66934.0,0.000824]
[1729668663000,0.74831722,66935.0,66934.0,0.000824]
[1729668663255,0.72603819,66935.0,66934.0,0.000824]
[1729668663472,0.72603821,66935.0,66934.0,0.000824]
[1729668663673,0.616301,66935.0,66934.0,0.000824]
[1729668663878,0.43002443,66935.0,66934.0,0.000824]
[1729668664113,0.52737059,66935.0,66934.0,0.000824]
[1729668664323,0.42999516,66935.0,66934.0,0.000824]
[1729668665151,0.36339063,66935.0,66934.0,0.000824]
[1729668665401,0.48376046,66935.0,66934.0,0.000824]
[1729668665608,0.43936699,66935.0,66934.0,0.000824]
[1729668667368,0.43931925,66935.0,66934.0,0.000824]
[1729668667754,0.36334289,66935.0,66934.0,0.000824]
[1729668667957,0.47309196,66935.0,66934.0,0.000824]
[1729668670167,0.13338374,66935.0,66934.0,0.000824]
[1729668670749,0.119518,66935.0,66934.0,0.000824]
[1729668670952,0.13337284,66935.0,66934.0,0.000824]
[1729668671152,0.119518,66935.0,66934.0,0.000824]
[1729668673989,0.22926707,66935.0,66934.0,0.000824]
[1729668674849,0.68455101,66935.0,66934.0,0.000824]
[1729668675062,0.44531236,66935.0,66934.0,0.000824]
[1729668676405,0.66943715,66935.0,66934.0,0.000824]
[1729668676587,0.55931236,66935.0,66934.0,0.000824]
[1729668677061,0.56431236,66935.0,66934.0,0.000824]
[1729668678365,0.74981242,66935.0,66934.0,0.000824]
[1729668681513,0.74481242,66935.0,66934.0,0.000824]
[1729668681709,0.56417721,66935.0,66934.0,0.000824]
[1729668682119,0.55032653,66935.0,66934.0,0.000824]
[1729668682338,0.56418222,66935.0,66934.0,0.000824]
[1729668682548,0.54532653,66935.0,66934.0,0.000824]
[1729668683386,0.55032653,66935.0,66934.0,0.000824]
[1729668684000,0.54532653,66935.0,66934.0,0.000824]
[1729668684439,0.55032653,66935.0,66934.0,0.000824]
[1729668684859,0.54532653,66935.0,66934.0,0.000824]
[1729668685078,0.55032653,66935.0,66934.0,0.000824]
[1729668685300,0.54532653,66935.0,66934.0,0.000824]
[1729668686388,0.55032653,66935.0,66934.0,0.000824]
[1729668688401,0.56420738,66935.0,66934.0,0.000824]
[1729668689456,0.63444305,66935.0,66934.0,0.000824]
[1729668690518,0.56420738,66935.0,66934.0,0.000824]
[1729668693891,0.56423708,66935.0,66934.0,0.000824]
[1729668698429,0.50240535,66935.0,66934.0,0.000824]
[1729668699515,0.54676147,66935.0,66934.0,0.000824]
[1729668700304,0.43694382,66935.0,66934.0,0.000824]
[1729668701307,0.3925877,66935.0,66934.0,0.000824]
[1729668701507,0.44521133,66935.0,66934.0,0.000824]
[1729668701712,0.45912199,66935.0,66934.0,0.000824]
[1729668703368,0.39258781,66935.0,66934.0,0.000824]
[1729668703604,0.64533304,66935.0,66934.0,0.000824]
[1729668704510,0.66751111,66935.0,66934.0,0.000824]
[1729668704719,0.5566208,66935.0,66934.0,0.000824]
[1729668705104,0.64553553,66935.0,66934.0,0.000824]
[1729668705357,0.5566208,66935.0,66934.0,0.000824]
[1729668706632,0.81679864,66935.0,66934.0,0.000824]
[1729668707508,0.58423845,66935.0,66934.0,0.000824]
[1729668707917,0.58451325,66935.0,66934.0,0.000824]
[1729668709421,0.58452312,66935.0,66934.0,0.000824]
[1729668709629,0.57060259,66935.0,66934.0,0.000824]
[1729668709843,0.58452295,66935.0,66934.0,0.000824]
[1729668712504,0.58452295,66935.0,66934.0,0.000824]
[1729668713325,0.58452276,66935.0,66934.0,0.000824]
[1729668716497,0.57060259,66935.0,66934.0,0.000824]
[1729668719326,0.46078494,66935.0,66934.0,0.000824]
[1729668724758,0.59431762,66935.0,66934.0,0.000824]
[1729668725176,0.46078494,66935.0,66934.0,0.000824]
[1729668725382,0.46089678,66935.0,66934.0,0.000824]
[1729668726493,0.81864514,66935.0,66934.0,0.000824]
[1729668726706,1.14650429,66935.0,66934.0,0.000824]
[1729668726959,0.97456116,66935.0,66934.0,0.000824]
[1729668727157,0.97456116,66935.0,66910.0,0.119562]
[1729668727158,0.119552,66916.0,66915.0,0.0988]
[1729668727367,0.119552,66916.0,66907.0,0.0805]
[1729668727368,0.119567,66908.0,66907.0,0.0805]
[1729668727607,0.22938465,66908.0,66907.0,0.0805]
[1729668727815,0.22938465,66908.0,66907.0,0.1804]
[1729668728239,0.45350944,66908.0,66907.0,0.1804]
[1729668728452,0.22938465,66908.0,66907.0,0.1804]
[1729668729848,0.22938465,66908.0,66907.0,0.0999]
[1729668730272,0.18579401,66908.0,66904.0,0.000824]
[1729668730652,0.119572,66905.0,66904.0,0.000824]
[1729668731777,0.22938965,66905.0,66904.0,0.000824]
[1729668732962,0.119572,66905.0,66904.0,0.000824]
[1729668734937,0.22938965,66905.0,66904.0,0.000824]
[1729668738001,0.22934965,66905.0,66904.0,0.000824]
[1729668740154,0.121182,66905.0,66904.0,0.000824]
[1729668740873,0.121182,66905.0,66904.0,0.169824]
[1729668740874,0.00165,66905.0,66904.0,0.169824]
[1729668741126,0.121222,66905.0,66904.0,0.169824]
[1729668741587,0.00165,66905.0,66904.0,0.169824]
[1729668742025,0.121222,66905.0,66904.0,0.169824]
[1729668742477,0.121222,66905.0,66904.0,0.091324]
[1729668744309,0.121222,66905.0,66904.0,0.000824]
[1729668755205,0.40493965,66905.0,66904.0,0.000824]
[1729668756553,0.31323965,66905.0,66904.0,0.000824]
[1729668756763,0.23103965,66905.0,66904.0,0.000824]
[1729668757001,0.121222,66905.0,66904.0,0.000824]
[1729668770042,0.121222,66905.0,66904.0,0.092024]
[1729668770668,0.121222,66905.0,66904.0,0.000824]
[1729668775127,0.16566544,66905.0,66904.0,0.000824]
[1729668777649,0.00165,66905.0,66904.0,0.27974165]
[1729668777889,0.00165,66905.0,66904.0,0.169924]
[1729668778673,0.00165,66905.0,66904.0,0.289498]
[1729668778908,0.00165,66905.0,66904.0,0.169924]
[1729668779431,0.121222,66905.0,66904.0,0.169924]
[1729668779694,0.121222,66905.0,66904.0,0.000824]
[1729668786063,0.18799987,66905.0,66904.0,0.000824]
[1729668786316,0.14958637,66905.0,66904.0,0.000824]
[1729668786533,0.43444664,66905.0,66904.0,0.000824]
[1729668787409,0.7487483,66905.0,66904.0,0.000824]
[1729668787708,0.86356595,66905.0,66904.0,0.000824]
[1729668788194,0.7537483,66905.0,66904.0,0.000824]
[1729668788440,0.90228727,66905.0,66904.0,0.000824]
[1729668788945,1.03584301,66905.0,66904.0,0.000824]
[1729668789186,6.06210492,66905.0,66904.0,0.000824]
[1729668789430,6.19544056,66905.0,66904.0,0.000824]
[1729668789691,6.30378868,66905.0,66904.0,0.000824]
[1729668789891,6.30954767,66905.0,66904.0,0.000824]
[1729668790581,6.30954767,66905.0,66898.0,0.000845]
[1729668790582,0.017,66899.0,66898.0,0.000845]
[1729668790800,0.6503303,66892.0,66862.0,0.119648]
[1729668791031,0.9754566,66892.0,66863.0,0.119647]
[1729668791251,6.0254566,66892.0,66866.0,0.09309075]
[1729668791568,6.17441575,66892.0,66866.0,0.0901]
[1729668791717,6.17641575,66892.0,66860.0,0.079]
[1729668792147,6.17641575,66892.0,66862.0,0.119648]
[1729668792360,6.1287123,66892.0,66862.0,0.119649]
[1729668793052,6.1287123,66892.0,66862.0,0.239296]
[1729668793260,6.23751995,66892.0,66863.0,0.119647]
[1729668793482,6.1287123,66892.0,66862.0,0.119648]
[1729668793922,6.1287123,66892.0,66863.0,0.119647]
[1729668794149,6.1287123,66892.0,66863.0,0.119646]
[1729668794386,6.21731802,66892.0,66863.0,0.119646]
[1729668794654,6.21657744,66892.0,66863.0,0.119646]
[1729668794873,6.21657744,66892.0,66860.0,0.198652]
[1729668794874,6.32156419,66892.0,66860.0,0.198652]
[1729668795086,6.32156419,66892.0,66860.0,0.079]
[1729668795307,6.21081361,66892.0,66860.0,0.079]
[1729668795529,6.32151454,66892.0,66860.0,0.079]
[1729668795741,6.17297583,66892.0,66860.0,0.079]
[1729668796421,6.23862303,66892.0,66860.0,0.079]
[1729668796638,1.18862303,66892.0,66860.0,0.079]
[1729668797049,1.08379706,66892.0,66860.0,0.079]
[1729668797304,6.22226766,66892.0,66860.0,0.079]
[1729668797531,6.13379706,66892.0,66860.0,0.079]
[1729668797749,6.13379706,66892.0,66860.0,0.318304]
[1729668798008,6.13179706,66892.0,66863.0,0.119646]
[1729668798215,6.13179706,66892.0,66860.0,0.318304]
[1729668798428,6.03459924,66892.0,66863.0,0.119646]
[1729668798645,6.03459924,66892.0,66860.0,0.318304]
[1729668798890,5.9682669,66892.0,66866.0,0.119641]
[1729668799113,6.03459931,66892.0,66864.0,0.119644]
[1729668799344,5.9702669,66892.0,66865.0,0.119643]
[1729668799552,6.01247973,66892.0,66866.0,0.119641]
[1729668799756,6.01247973,66892.0,66864.0,0.119644]
[1729668799986,6.01447973,66892.0,66864.0,0.119644]
[1729668800195,5.9702669,66892.0,66865.0,0.119642]
[1729668800816,6.01447202,66892.0,66865.0,0.119642]
[1729668801029,5.9682669,66892.0,66866.0,0.119641]
[1729668801235,5.9682669,66892.0,66865.0,0.119642]
[1729668801452,5.9682669,66892.0,66869.0,0.0986]
[1729668801881,2.40930775,66892.0,66872.0,0.081]
[1729668802097,0.123,66882.0,66872.0,0.07919736]
[1729668802316,0.119629,66874.0,66872.0,0.07919736]
[1729668802528,0.239252,66875.0,66872.0,0.07919736]
[1729668802738,0.119629,66873.0,66872.0,0.07919736]
[1729668802948,0.239252,66875.0,66872.0,0.07919736]
[1729668802949,0.119627,66875.0,66872.0,0.07919736]
[1729668803416,0.119628,66874.0,66872.0,0.07919736]
[1729668803630,0.119629,66873.0,66872.0,0.07919736]
[1729668804511,0.1,66880.0,66873.0,0.0939]
[1729668804726,0.119624,66877.0,66873.0,0.0939]
[1729668804939,0.46336579,66878.0,66873.0,0.0939]
[1729668804940,0.119627,66874.0,66873.0,0.0939]
[1729668805568,0.34374579,66878.0,66873.0,0.213528]
[1729668805786,0.119624,66876.0,66873.0,0.0939]
[1729668805989,0.22412479,66878.0,66873.0,0.0939]
[1729668806247,0.119624,66876.0,66873.0,0.0939]
[1729668806473,0.22412479,66877.0,66873.0,0.0939]
[1729668806946,0.34374779,66877.0,66873.0,0.0939]
[1729668807146,0.119627,66874.0,66873.0,0.0939]
[1729668807354,0.22412479,66877.0,66873.0,0.213529]
[1729668807565,0.239238,66880.0,66873.0,0.0939]
[1729668807773,0.239242,66878.0,66873.0,0.0939]
[1729668807983,0.239227,66882.0,66873.0,0.0939]
[1729668808208,0.48485664,66892.0,66878.0,0.17193185]
[1729668808209,0.239206,66888.0,66878.0,0.17193185]
[1729668808419,0.119611,66883.0,66879.0,0.1754]
[1729668808627,0.01382736,66883.0,66879.0,0.1754]
[1729668808832,0.119617,66880.0,66879.0,0.1754]
[1729668809038,0.119611,66883.0,66879.0,0.1754]
[1729668809283,0.239227,66882.0,66879.0,0.1754]
[1729668809770,0.119617,66880.0,66879.0,0.1754]
[1729668811290,0.1334529,66880.0,66879.0,0.1754]
[1729668811912,0.1334529,66880.0,66874.0,0.1764]
[1729668811913,0.119627,66875.0,66874.0,0.1764]
[1729668812550,0.34375179,66875.0,66874.0,0.1764]
[1729668812741,0.119627,66875.0,66874.0,0.1764]
[1729668813817,0.239241,66878.0,66874.0,0.1764]
[1729668814026,0.119626,66875.0,66874.0,0.1764]
[1729668814863,0.01385097,66877.0,66874.0,0.1764]
[1729668815072,0.01385097,66878.0,66874.0,0.1764]
[1729668815277,0.119624,66876.0,66874.0,0.1764]
[1729668815484,0.13347497,66876.0,66874.0,0.1764]
[1729668815693,0.119626,66875.0,66874.0,0.1764]
[1729668816329,0.13347697,66875.0,66874.0,0.1764]
[1729668817173,0.01385097,66876.0,66874.0,0.1764]
[1729668817410,0.239228,66882.0,66874.0,0.1764]
[1729668817411,0.01385097,66875.0,66874.0,0.296027]
[1729668817669,0.01385097,66875.0,66874.0,0.1764]
[1729668817906,0.01387857,66875.0,66874.0,0.1764]
[1729668818165,0.39605664,66892.0,66875.0,0.119624]
[1729668818166,0.22412479,66878.0,66875.0,0.119624]
[1729668818417,0.01388326,66877.0,66875.0,0.119624]
[1729668818666,0.01388326,66876.0,66875.0,0.119624]
[1729668818928,0.01388326,66876.0,66874.0,0.415655]
[1729668818929,0.01388326,66876.0,66874.0,0.1764]
[1729668819167,0.01388326,66875.0,66874.0,0.1764]
[1729668819960,0.119627,66874.0,66873.0,0.000824]
[1729668820224,0.13351026,66874.0,66873.0,0.000824]
[1729668821431,0.13351359,66874.0,66873.0,0.000824]
[1729668822211,0.01388659,66874.0,66873.0,0.000824]
[1729668822464,0.13351359,66874.0,66873.0,0.000824]
[1729668823197,0.01388659,66874.0,66873.0,0.000824]
[1729668823450,0.13351359,66874.0,66873.0,0.000824]
[1729668824701,0.01388659,66874.0,66873.0,0.000824]
[1729668824939,0.13351359,66874.0,66873.0,0.000824]
[1729668825176,0.01388659,66874.0,66873.0,0.000824]
[1729668825415,0.13351359,66874.0,66873.0,0.000824]
[1729668825669,0.01388659,66874.0,66873.0,0.120453]
[1729668825914,0.01388659,66874.0,66873.0,0.202553]
[1729668826949,0.01388659,66874.0,66873.0,0.293953]
[1729668828701,0.01389382,66874.0,66873.0,0.174324]
[1729668829189,0.01389382,66874.0,66873.0,0.000824]
[1729668831376,0.13352082,66874.0,66873.0,0.000824]
[1729668831665,0.01389382,66874.0,66873.0,0.000824]
[1729668833237,0.01389382,66874.0,66873.0,0.120453]
[1729668833701,0.01389382,66874.0,66873.0,0.218553]
[1729668834824,0.01389382,66874.0,66873.0,0.098924]
[1729668835480,0.01389382,66874.0,66873.0,0.218553]
[1729668835695,0.01389382,66874.0,66873.0,0.098924]
[1729668835911,0.01389382,66874.0,66873.0,0.218553]
[1729668836173,0.01389382,66874.0,66873.0,0.098924]
[1729668836704,0.13352082,66874.0,66873.0,0.098924]
[1729668836957,0.13352082,66874.0,66873.0,0.000824]
[1729668837737,0.13352082,66874.0,66873.0,0.210653]
[1729668837738,0.01389382,66874.0,66873.0,0.210653]
[1729668839411,0.01390737,66874.0,66873.0,0.210653]
[1729668839677,0.01390708,66874.0,66873.0,0.091024]
[1729668839899,0.01390708,66874.0,66873.0,0.210653]
[1729668840318,0.01390708,66874.0,66873.0,0.292853]
[1729668840972,0.01390708,66874.0,66873.0,0.297853]
[1729668841176,0.01390708,66874.0,66873.0,0.30084324]
[1729668841393,0.01390708,66874.0,66873.0,0.297853]
[1729668841613,0.01390708,66874.0,66873.0,0.45681215]
[1729668841837,0.00165,66877.0,66876.0,0.124624]
[1729668842048,0.01555723,66877.0,66876.0,0.124624]
[1729668842474,0.119627,66874.0,66873.0,0.000824]
[1729668842712,0.13353423,66874.0,66873.0,0.000824]
[1729668845584,0.48539338,66874.0,66873.0,0.000824]
[1729668845802,0.5520733,66874.0,66873.0,0.000824]
[1729668846039,0.73840846,66874.0,66873.0,0.000824]